[Event "Open Cappelle-la-Grande"]
[Date "2025.02.18"]
[White "Nikolov, Momchil"]
[Black "Manukonda Arun"]
[WhiteElo "2433"]
[BlackElo "2018"]
[Round "5.5.16"]
[Result "1-0"]
[TimeControl "40/5400+30:1800+30"]

1. e4 {[%clk 1:28:42]} 1... c5 {[%clk 1:30:54]} 2. Nf3 {[%clk 1:29:05]} 2... Nc6
{[%clk 1:30:34]} 3. Bb5 {[%clk 1:29:17]} 3... d6 {[%clk 1:30:51]} 4. d4 {[%clk
1:25:59]} 4... cxd4 {[%clk 1:30:33]} 5. Qxd4 {[%clk 1:25:57]} 5... a6 {[%clk
1:31:02]} 6. Bxc6+ {[%clk 1:26:14]} 6... bxc6 {[%clk 1:31:31]} 7. c4 {[%clk
1:25:23]} 7... e5 {[%clk 1:31:50]} 8. Qd3 {[%clk 1:25:08]} 8... Ne7 {[%clk
1:31:16]} 9. Nc3 {[%clk 1:24:25]} 9... Ng6 {[%clk 1:31:35]} 10. Be3 {[%clk
1:20:00]} 10... Be7 {[%clk 1:27:28]} 11. c5 {[%clk 1:18:11]} 11... Qc7 {[%clk
1:21:24]} 12. cxd6 {[%clk 1:16:30]} 12... Bxd6 {[%clk 1:21:29]} 13. O-O {[%clk
1:15:17]} 13... O-O {[%clk 1:20:13]} 14. Rac1 {[%clk 1:13:14]} 14... f5 {[%clk
1:06:44]} 15. Nd5 {[%clk 1:08:07]} 15... Qb8 {[%clk 0:55:01]} 16. Nb6 {[%clk
1:00:37]} 16... fxe4 {[%clk 0:50:19]} 17. Qc4+ {[%clk 0:57:05]} 17... Kh8 {[%clk
0:47:22]} 18. Ng5 {[%clk 0:56:48]} 18... Nf4 {[%clk 0:39:22]} 19. Nxa8 {[%clk
0:54:29]} 19... h6 {[%clk 0:25:45]} 20. Bxf4 {[%clk 0:43:16]} 20... hxg5 {[%clk
0:23:33]} 21. Bxg5 {[%clk 0:41:52]} 21... Qxa8 {[%clk 0:22:12]} 22. Qxc6 {[%clk
0:41:52]} 22... Qb8 {[%clk 0:22:19]} 23. Rfd1 {[%clk 0:41:51]} 23... e3 {[%clk
0:17:06]} 24. Bxe3 {[%clk 0:40:34]} 24... Be7 {[%clk 0:17:13]} 25. Qc7 {[%clk
0:40:37]} 25... Qb4 {[%clk 0:15:54]} 26. Rc4 {[%clk 0:40:27]} 26... Bd8 {[%clk
0:05:03]} 27. Qxc8 {[%clk 0:37:32]} 1-0

[Variant "Standard"]
[Site "Europe Echecs"]

[Event "Open Cappelle-la-Grande"]
[Date "2025.02.18"]
[White "Abergel, Thal"]
[Black "Desmet, Cyprien"]
[WhiteElo "2419"]
[BlackElo "1985"]
[Round "5.5.17"]
[Result "1-0"]
[TimeControl "40/5400+30:1800+30"]

1. c4 {[%clk 1:30:58]} 1... Nf6 {[%clk 1:30:49]} 2. Nf3 {[%clk 1:31:11]} 2... c5
{[%clk 1:29:57]} 3. g3 {[%clk 1:30:39]} 3... Nc6 {[%clk 1:29:49]} 4. Bg2 {[%clk
1:31:00]} 4... g6 {[%clk 1:28:18]} 5. b3 {[%clk 1:31:23]} 5... Bg7 {[%clk
1:28:08]} 6. Bb2 {[%clk 1:31:33]} 6... O-O {[%clk 1:27:51]} 7. O-O {[%clk
1:31:45]} 7... b6 {[%clk 1:25:25]} 8. d4 {[%clk 1:30:42]} 8... cxd4 {[%clk
1:25:07]} 9. Nxd4 {[%clk 1:31:04]} 9... Bb7 {[%clk 1:24:34]} 10. Nc3 {[%clk
1:31:23]} 10... Rb8 {[%clk 1:17:38]} 11. Nf3 {[%clk 1:25:17]} 11... d6 {[%clk
1:15:38]} 12. Qd2 {[%clk 1:24:53]} 12... Qd7 {[%clk 1:14:59]} 13. Rfd1 {[%clk
1:24:02]} 13... Rfd8 {[%clk 1:11:49]} 14. Nd5 {[%clk 1:21:30]} 14... Ne8 {[%clk
1:04:51]} 15. Bxg7 {[%clk 1:20:35]} 15... Nxg7 {[%clk 1:04:02]} 16. e4 {[%clk
1:18:16]} 16... Qe8 {[%clk 0:55:16]} 17. Qh6 {[%clk 1:15:23]} 17... Ne6 {[%clk
0:54:27]} 18. Qh4 {[%clk 1:09:04]} 18... f6 {[%clk 0:52:49]} 19. Qh6 {[%clk
1:06:22]} 19... Ne5 {[%clk 0:48:26]} 20. Qe3 {[%clk 1:05:37]} 20... Rbc8 {[%clk
0:42:44]} 21. Rd2 {[%clk 1:03:30]} 21... Nc7 {[%clk 0:40:22]} 22. Bh3 {[%clk
1:02:24]} 22... Nxd5 {[%clk 0:38:35]} 23. Be6+ {[%clk 0:58:50]} 23... Kg7 {[%clk
0:37:54]} 24. exd5 {[%clk 0:59:16]} 24... Nxf3+ {[%clk 0:36:05]} 25. Qxf3 {[%clk
0:59:38]} 25... Rc7 {[%clk 0:35:37]} 26. a4 {[%clk 0:58:52]} 26... Qf8 {[%clk
0:28:28]} 27. g4 {[%clk 0:56:46]} 27... Kh8 {[%clk 0:27:56]} 28. Qf4 {[%clk
0:55:08]} 28... a5 {[%clk 0:25:35]} 29. Qe3 {[%clk 0:54:36]} 29... Rc5 {[%clk
0:25:16]} 30. Re1 {[%clk 0:54:58]} 30... Qg7 {[%clk 0:24:18]} 31. Qd4 {[%clk
0:51:34]} 31... h6 {[%clk 0:19:31]} 32. Rde2 {[%clk 0:50:36]} 32... Ba6 {[%clk
0:18:38]} 33. h4 {[%clk 0:44:09]} 33... Kh7 {[%clk 0:14:38]} 34. h5 {[%clk
0:42:25]} 34... f5 {[%clk 0:12:10]} 35. hxg6+ {[%clk 0:42:46]} 35... Kh8 {[%clk
0:12:10]} 36. Qxg7+ {[%clk 0:42:41]} 36... Kxg7 {[%clk 0:12:32]} 37. Bxf5 {[%clk
0:41:42]} 37... Bc8 {[%clk 0:11:28]} 38. Rxe7+ {[%clk 0:40:14]} 38... Kf6 {[%clk
0:11:08]} 39. Rf7+ {[%clk 0:40:22]} 39... Kg5 {[%clk 0:11:30]} 40. g7 {[%clk
0:40:22]} 1-0

[Variant "Standard"]
[Site "Europe Echecs"]

[Event "Open Cappelle-la-Grande"]
[Date "2025.02.19"]
[White "Iniyan, Pa"]
[Black "Petriashvili, Nikoloz"]
[WhiteElo "2523"]
[BlackElo "2450"]
[Round "6.6.1"]
[Result "1-0"]
[TimeControl "40/5400+30:1800+30"]

1. d4 {[%clk 1:29:15]} 1... Nf6 {[%clk 1:29:00]} 2. c4 {[%clk 1:28:35]} 2... e6
{[%clk 1:27:24]} 3. Nf3 {[%clk 1:28:43]} 3... Bb4+ {[%clk 1:27:52]} 4. Bd2
{[%clk 1:29:01]} 4... Bxd2+ {[%clk 1:28:20]} 5. Qxd2 {[%clk 1:29:20]} 5... d5
{[%clk 1:28:49]} 6. Nc3 {[%clk 1:29:34]} 6... O-O {[%clk 1:27:52]} 7. e3 {[%clk
1:29:54]} 7... Qe7 {[%clk 1:28:18]} 8. Rc1 {[%clk 1:28:25]} 8... Rd8 {[%clk
1:23:34]} 9. cxd5 {[%clk 1:18:25]} 9... exd5 {[%clk 1:23:36]} 10. Bd3 {[%clk
1:18:43]} 10... b6 {[%clk 1:24:00]} 11. O-O {[%clk 1:08:52]} 11... c5 {[%clk
1:22:22]} 12. b3 {[%clk 1:08:40]} 12... Bb7 {[%clk 1:18:44]} 13. Rfd1 {[%clk
0:57:53]} 13... Nbd7 {[%clk 1:17:38]} 14. Qb2 {[%clk 0:53:17]} 14... a6 {[%clk
1:10:17]} 15. Bf5 {[%clk 0:44:27]} 15... Rab8 {[%clk 1:00:24]} 16. Bxd7 {[%clk
0:35:48]} 16... Nxd7 {[%clk 0:57:15]} 17. dxc5 {[%clk 0:36:09]} 17... Nxc5
{[%clk 0:57:43]} 18. Ne2 {[%clk 0:36:25]} 18... Rbc8 {[%clk 0:55:29]} 19. Nf4
{[%clk 0:31:02]} 19... a5 {[%clk 0:53:44]} 20. h3 {[%clk 0:29:54]} 20... h6
{[%clk 0:47:13]} 21. Nh5 {[%clk 0:21:47]} 21... Ne6 {[%clk 0:46:07]} 22. Qe5
{[%clk 0:21:19]} 22... Rxc1 {[%clk 0:40:50]} 23. Rxc1 {[%clk 0:21:38]} 23... f6
{[%clk 0:40:28]} 24. Qg3 {[%clk 0:21:21]} 24... Kh7 {[%clk 0:31:59]} 25. Nf4
{[%clk 0:16:02]} 25... Nc5 {[%clk 0:31:01]} 26. h4 {[%clk 0:14:43]} 26... Qe4
{[%clk 0:27:26]} 27. Nd4 {[%clk 0:11:02]} 27... Re8 {[%clk 0:26:46]} 28. a3
{[%clk 0:08:21]} 28... g5 {[%clk 0:25:03]} 29. Nh5 {[%clk 0:07:26]} 29... Kg6
{[%clk 0:22:23]} 30. Qc7 {[%clk 0:06:05]} 30... Qe7 {[%clk 0:20:29]} 31. Qxb6
{[%clk 0:05:35]} 31... Rc8 {[%clk 0:20:53]} 32. Nxf6 {[%clk 0:01:52]} 32... Qxf6
{[%clk 0:20:46]} 33. h5+ {[%clk 0:02:18]} 33... Kg7 {[%clk 0:13:18]} 34. Qb5
{[%clk 0:02:15]} 34... Ba6 {[%clk 0:13:30]} 35. Qxa5 {[%clk 0:02:37]} 35... Ne6
{[%clk 0:11:11]} 36. Rxc8 {[%clk 0:01:59]} 36... Bxc8 {[%clk 0:11:39]} 37. Qa7+
{[%clk 0:02:19]} 37... Kg8 {[%clk 0:10:45]} 38. Qa8 {[%clk 0:02:23]} 38... Qf8
{[%clk 0:11:02]} 39. Qxd5 {[%clk 0:02:45]} 39... Qc5 {[%clk 0:11:17]} 40. Qxc5
{[%clk 0:01:35]} 40... Nxc5 {[%clk 0:11:45]} 41. f3 {[%clk 0:30:30]} 41... g4
{[%clk 0:41:52]} 42. b4 {[%clk 0:25:29]} 42... Na4 {[%clk 0:41:41]} 43. Kf2
{[%clk 0:25:50]} 43... Bd7 {[%clk 0:41:54]} 44. Kg3 {[%clk 0:24:52]} 44... gxf3
{[%clk 0:42:13]} 45. gxf3 {[%clk 0:25:16]} 45... Nc3 {[%clk 0:41:25]} 46. e4
{[%clk 0:25:29]} 46... Be8 {[%clk 0:37:17]} 47. Kh4 {[%clk 0:21:34]} 47... Bd7
{[%clk 0:36:06]} 48. e5 {[%clk 0:21:25]} 48... Kf7 {[%clk 0:33:26]} 49. f4
{[%clk 0:19:33]} 49... Nb5 {[%clk 0:33:29]} 50. e6+ {[%clk 0:07:27]} 50... Ke7
{[%clk 0:33:32]} 51. exd7 {[%clk 0:07:51]} 51... Nxd4 {[%clk 0:33:58]} 52. Kg4
{[%clk 0:08:12]} 52... Kxd7 {[%clk 0:27:39]} 53. a4 {[%clk 0:08:37]} 53... Kd6
{[%clk 0:16:10]} 54. a5 {[%clk 0:09:01]} 54... Ke6 {[%clk 0:09:38]} 55. a6
{[%clk 0:09:19]} 55... Nb5 {[%clk 0:10:06]} 56. Kf3 {[%clk 0:09:30]} 56... Kd5
{[%clk 0:10:10]} 57. Ke3 {[%clk 0:09:10]} 57... Na7 {[%clk 0:09:19]} 58. Kd3
{[%clk 0:08:22]} 58... Nb5 {[%clk 0:05:39]} 59. f5 {[%clk 0:08:43]} 59... Kc6
{[%clk 0:02:41]} 60. f6 {[%clk 0:09:02]} 60... Nd6 {[%clk 0:00:32]} 61. b5+
{[%clk 0:09:07]} 61... Kb6 {[%clk 0:00:53]} 62. Kd4 {[%clk 0:09:11]} 62... Nf7
{[%clk 0:00:35]} 63. Kd5 {[%clk 0:09:33]} 63... Ng5 {[%clk 0:00:53]} 64. Kd6
{[%clk 0:09:50]} 1-0

[Variant "Standard"]
[Site "Europe Echecs"]

[Event "Open Cappelle-la-Grande"]
[Date "2025.02.19"]
[White "Tahay, Alexis"]
[Black "Muthaiah AL"]
[WhiteElo "2386"]
[BlackElo "2474"]
[Round "6.6.2"]
[Result "1/2-1/2"]
[TimeControl "40/5400+30:1800+30"]

1. e4 {[%clk 1:30:40]} 1... c6 {[%clk 1:28:35]} 2. d4 {[%clk 1:30:48]} 2... d5
{[%clk 1:28:53]} 3. e5 {[%clk 1:30:53]} 3... c5 {[%clk 1:29:06]} 4. Nf3 {[%clk
1:29:30]} 4... cxd4 {[%clk 1:28:54]} 5. Qxd4 {[%clk 1:29:33]} 5... Nc6 {[%clk
1:28:52]} 6. Qf4 {[%clk 1:29:59]} 6... g6 {[%clk 1:28:53]} 7. Nc3 {[%clk
1:24:49]} 7... d4 {[%clk 1:27:53]} 8. Bc4 {[%clk 1:17:45]} 8... Bf5 {[%clk
1:25:50]} 9. Ne2 {[%clk 1:16:14]} 9... Bh6 {[%clk 1:23:45]} 10. Qg3 {[%clk
1:10:19]} 10... d3 {[%clk 1:08:49]} 11. cxd3 {[%clk 1:07:24]} 11... Bxc1 {[%clk
0:56:06]} 12. Rxc1 {[%clk 1:06:35]} 12... Bxd3 {[%clk 0:55:59]} 13. O-O {[%clk
1:04:08]} 13... Bxc4 {[%clk 0:55:41]} 14. Rxc4 {[%clk 1:04:35]} 14... Qd3 {[%clk
0:53:56]} 15. Rxc6 {[%clk 1:04:58]} 15... bxc6 {[%clk 0:53:55]} 16. Nf4 {[%clk
0:59:29]} 16... Qf5 {[%clk 0:47:04]} 17. e6 {[%clk 0:51:58]} 17... f6 {[%clk
0:42:42]} 18. Nd4 {[%clk 0:50:28]} 18... Qe4 {[%clk 0:40:37]} 19. Qc3 {[%clk
0:49:56]} 19... Rc8 {[%clk 0:30:55]} 20. g3 {[%clk 0:43:55]} 20... c5 {[%clk
0:28:44]} 21. Nb5 {[%clk 0:43:01]} 21... Qb7 {[%clk 0:23:54]} 22. Qc4 {[%clk
0:38:24]} 22... a6 {[%clk 0:19:04]} 23. Nc3 {[%clk 0:36:42]} 23... Nh6 {[%clk
0:17:27]} 24. Rd1 {[%clk 0:35:49]} 24... Nf5 {[%clk 0:16:29]} 25. Rd7 {[%clk
0:32:34]} 25... Rc7 {[%clk 0:14:15]} 26. b4 {[%clk 0:19:40]} 26... Rxd7 {[%clk
0:05:19]} 27. exd7+ {[%clk 0:19:55]} 27... Qxd7 {[%clk 0:05:43]} 28. bxc5 {[%clk
0:20:21]} 28... Qd4 {[%clk 0:05:40]} 29. Qb3 {[%clk 0:18:48]} 29... Qxc5 {[%clk
0:03:55]} 30. Qb8+ {[%clk 0:18:25]} 30... Kd7 {[%clk 0:04:13]} 31. Qxh8 {[%clk
0:18:20]} 31... Qxc3 {[%clk 0:04:35]} 32. Qxh7 {[%clk 0:17:53]} 32... Qe1+
{[%clk 0:01:49]} 33. Kg2 {[%clk 0:18:19]} 33... Qe4+ {[%clk 0:02:11]} 34. f3
{[%clk 0:17:41]} 34... Ne3+ {[%clk 0:02:29]} 35. Kf2 {[%clk 0:15:28]} 35... Nd1+
{[%clk 0:02:50]} 36. Kf1 {[%clk 0:14:12]} 36... Qe3 {[%clk 0:00:38]} 37. Qh3+
{[%clk 0:14:40]} 37... f5 {[%clk 0:00:54]} 38. Qg2 {[%clk 0:15:05]} 38... Qc1
{[%clk 0:00:37]} 39. Qe2 {[%clk 0:12:18]} 39... Nc3+ {[%clk 0:00:34]} 40. Qe1
{[%clk 0:12:47]} 40... Qxe1+ {[%clk 0:00:36]} 41. Kxe1 {[%clk 0:13:15]} 41...
Nxa2 {[%clk 0:24:17]} 42. Nxg6 {[%clk 0:43:26]} 42... Nc3 {[%clk 0:21:56]} 43.
h4 {[%clk 0:39:57]} 43... Ke6 {[%clk 0:18:55]} 44. Nf4+ {[%clk 0:37:54]} 44...
Kf6 {[%clk 0:18:03]} 45. Kd2 {[%clk 0:37:47]} 45... e5 {[%clk 0:17:50]} 46. Nd3
{[%clk 0:37:18]} 46... Nd5 {[%clk 0:17:41]} 47. g4 {[%clk 0:36:33]} 47... fxg4
{[%clk 0:14:42]} 1/2-1/2

[Variant "Standard"]
[Site "Europe Echecs"]

[Event "Open Cappelle-la-Grande"]
[Date "2025.02.19"]
[White "Karthik Venkataraman"]
[Black "Abergel, Thal"]
[WhiteElo "2600"]
[BlackElo "2419"]
[Round "6.6.3"]
[Result "0-1"]
[TimeControl "40/5400+30:1800+30"]

1. e4 {[%clk 1:30:57]} 1... d6 {[%clk 1:30:26]} 2. d4 {[%clk 1:31:20]} 2... Nf6
{[%clk 1:30:52]} 3. Nc3 {[%clk 1:31:46]} 3... e5 {[%clk 1:31:19]} 4. Nf3 {[%clk
1:32:11]} 4... Nbd7 {[%clk 1:31:43]} 5. Be2 {[%clk 1:32:35]} 5... Be7 {[%clk
1:32:07]} 6. O-O {[%clk 1:33:01]} 6... O-O {[%clk 1:32:25]} 7. a4 {[%clk
1:33:28]} 7... c6 {[%clk 1:32:52]} 8. a5 {[%clk 1:33:41]} 8... Qc7 {[%clk
1:32:08]} 9. d5 {[%clk 1:34:05]} 9... a6 {[%clk 1:32:24]} 10. Nd2 {[%clk
1:34:19]} 10... b5 {[%clk 1:32:13]} 11. axb6 {[%clk 1:33:54]} 11... Nxb6 {[%clk
1:32:17]} 12. Nb3 {[%clk 1:21:13]} 12... cxd5 {[%clk 1:30:26]} 13. exd5 {[%clk
1:21:36]} 13... Bb7 {[%clk 1:30:02]} 14. Ra5 {[%clk 1:22:02]} 14... Nfd7 {[%clk
1:26:04]} 15. Be3 {[%clk 1:18:58]} 15... f5 {[%clk 1:23:17]} 16. Ra3 {[%clk
1:18:47]} 16... Nf6 {[%clk 1:21:03]} 17. Na5 {[%clk 1:17:57]} 17... Nbd7 {[%clk
1:18:44]} 18. Qa1 {[%clk 1:07:13]} 18... f4 {[%clk 1:12:27]} 19. Bc1 {[%clk
1:05:02]} 19... Bc8 {[%clk 1:01:57]} 20. Nc6 {[%clk 1:04:21]} 20... Nb8 {[%clk
1:01:57]} 21. Nb5 {[%clk 0:48:22]} 21... Qb7 {[%clk 0:58:45]} 22. Nxe7+ {[%clk
0:48:41]} 22... Qxe7 {[%clk 0:59:14]} 23. c4 {[%clk 0:49:04]} 23... Nbd7 {[%clk
0:54:25]} 24. Nc7 {[%clk 0:47:23]} 24... Rb8 {[%clk 0:54:23]} 25. Nxa6 {[%clk
0:44:25]} 25... Bxa6 {[%clk 0:53:42]} 26. Rxa6 {[%clk 0:44:53]} 26... Nc5 {[%clk
0:53:46]} 27. Ra3 {[%clk 0:42:34]} 27... Nb3 {[%clk 0:49:41]} 28. Qb1 {[%clk
0:34:04]} 28... Nd4 {[%clk 0:48:18]} 29. Qd3 {[%clk 0:32:18]} 29... Nd7 {[%clk
0:47:16]} 30. Qd1 {[%clk 0:27:38]} 30... Nc5 {[%clk 0:45:53]} 31. Re1 {[%clk
0:28:01]} 31... Rb3 {[%clk 0:31:58]} 32. Bf1 {[%clk 0:26:20]} 32... Qg5 {[%clk
0:25:07]} 33. Kh1 {[%clk 0:23:38]} 33... Qh4 {[%clk 0:21:40]} 34. g3 {[%clk
0:23:31]} 34... fxg3 {[%clk 0:21:27]} 35. fxg3 {[%clk 0:24:00]} 35... Rxf1+
{[%clk 0:20:45]} 36. Rxf1 {[%clk 0:21:14]} 36... Qe4+ {[%clk 0:21:07]} 37. Kg1
{[%clk 0:21:40]} 37... Rxa3 {[%clk 0:21:28]} 38. Rf2 {[%clk 0:19:58]} 38... Ra1
{[%clk 0:20:24]} 39. Qf1 {[%clk 0:20:13]} 39... h6 {[%clk 0:20:37]} 40. h4
{[%clk 0:20:15]} 40... Nd3 {[%clk 0:20:08]} 0-1

[Variant "Standard"]
[Site "Europe Echecs"]

[Event "Open Cappelle-la-Grande"]
[Date "2025.02.19"]
[White "Wirig, Anthony"]
[Black "Pranesh M"]
[WhiteElo "2419"]
[BlackElo "2586"]
[Round "6.6.4"]
[Result "1/2-1/2"]
[TimeControl "40/5400+30:1800+30"]

1. d4 {[%clk 1:30:57]} 1... Nf6 {[%clk 1:29:12]} 2. Nf3 {[%clk 1:30:55]} 2... d5
{[%clk 1:29:16]} 3. c4 {[%clk 1:31:20]} 3... e6 {[%clk 1:29:41]} 4. Nc3 {[%clk
1:31:13]} 4... c6 {[%clk 1:29:54]} 5. e3 {[%clk 1:31:27]} 5... Nbd7 {[%clk
1:30:16]} 6. Qc2 {[%clk 1:31:52]} 6... Bd6 {[%clk 1:29:43]} 7. Bd3 {[%clk
1:32:16]} 7... dxc4 {[%clk 1:29:40]} 8. Bxc4 {[%clk 1:32:43]} 8... O-O {[%clk
1:28:54]} 9. O-O {[%clk 1:33:08]} 9... Qe7 {[%clk 1:28:43]} 10. Bb3 {[%clk
1:23:13]} 10... e5 {[%clk 1:27:02]} 11. h3 {[%clk 1:21:26]} 11... b5 {[%clk
1:22:36]} 12. e4 {[%clk 0:58:55]} 12... a5 {[%clk 1:14:24]} 13. a3 {[%clk
0:50:09]} 13... Ba6 {[%clk 1:09:05]} 14. Rd1 {[%clk 0:46:08]} 14... Rad8 {[%clk
0:58:02]} 15. Be3 {[%clk 0:41:17]} 15... Bc8 {[%clk 0:38:08]} 16. d5 {[%clk
0:36:00]} 16... Bb7 {[%clk 0:34:13]} 17. dxc6 {[%clk 0:34:36]} 17... Bxc6 {[%clk
0:34:38]} 18. Nd5 {[%clk 0:34:33]} 18... Bxd5 {[%clk 0:35:02]} 19. Bxd5 {[%clk
0:34:54]} 19... b4 {[%clk 0:32:57]} 20. axb4 {[%clk 0:30:56]} 20... Bxb4 {[%clk
0:32:43]} 21. Rac1 {[%clk 0:29:57]} 21... Nxd5 {[%clk 0:27:43]} 22. Rxd5 {[%clk
0:29:40]} 22... Nf6 {[%clk 0:28:04]} 23. Rxe5 {[%clk 0:18:48]} 23... Qb7 {[%clk
0:26:35]} 24. Rd1 {[%clk 0:19:16]} 24... Rxd1+ {[%clk 0:24:58]} 25. Qxd1 {[%clk
0:19:37]} 25... Nxe4 {[%clk 0:24:57]} 26. Qd5 {[%clk 0:18:13]} 26... Qxd5 {[%clk
0:25:12]} 27. Rxd5 {[%clk 0:18:41]} 27... Rc8 {[%clk 0:25:12]} 28. Ne5 {[%clk
0:17:53]} 28... f6 {[%clk 0:19:42]} 29. Nd3 {[%clk 0:17:42]} 29... Nd2 {[%clk
0:19:03]} 30. g4 {[%clk 0:10:52]} 1/2-1/2

[Variant "Standard"]
[Site "Europe Echecs"]

[Event "Open Cappelle-la-Grande"]
[Date "2025.02.19"]
[White "Bauer, Christian"]
[Black "Enchev, Ivajlo"]
[WhiteElo "2548"]
[BlackElo "2407"]
[Round "6.6.5"]
[Result "1-0"]
[TimeControl "40/5400+30:1800+30"]

1. e4 {[%clk 1:30:57]} 1... e5 {[%clk 1:27:05]} 2. Nf3 {[%clk 1:30:05]} 2... Nc6
{[%clk 1:27:21]} 3. Bc4 {[%clk 1:28:24]} 3... Bc5 {[%clk 1:27:30]} 4. d3 {[%clk
1:28:30]} 4... Nf6 {[%clk 1:27:44]} 5. a4 {[%clk 1:27:25]} 5... d5 {[%clk
1:20:26]} 6. exd5 {[%clk 1:27:48]} 6... Nxd5 {[%clk 1:20:52]} 7. a5 {[%clk
1:22:28]} 7... a6 {[%clk 1:18:26]} 8. c3 {[%clk 1:21:17]} 8... O-O {[%clk
1:17:16]} 9. Qb3 {[%clk 1:11:54]} 9... Nf4 {[%clk 1:11:57]} 10. Bxf4 {[%clk
1:11:52]} 10... exf4 {[%clk 1:12:26]} 11. Nbd2 {[%clk 1:08:54]} 11... b5 {[%clk
1:06:33]} 12. axb6 {[%clk 1:02:23]} 12... cxb6 {[%clk 1:04:19]} 13. d4 {[%clk
0:55:23]} 13... Bd6 {[%clk 1:00:39]} 14. Bd5 {[%clk 0:54:44]} 14... Qe7+ {[%clk
0:57:06]} 15. Kf1 {[%clk 0:52:51]} 15... Qc7 {[%clk 0:52:47]} 16. Nc4 {[%clk
0:42:34]} 16... Rb8 {[%clk 0:48:00]} 17. Ng5 {[%clk 0:35:20]} 17... Na5 {[%clk
0:46:22]} 18. Qc2 {[%clk 0:31:25]} 18... g6 {[%clk 0:46:45]} 19. Nxd6 {[%clk
0:24:23]} 19... Qxd6 {[%clk 0:47:10]} 20. Ne4 {[%clk 0:24:47]} 20... Qc7 {[%clk
0:43:46]} 21. Qe2 {[%clk 0:15:44]} 21... Kg7 {[%clk 0:41:57]} 22. h4 {[%clk
0:15:22]} 22... h5 {[%clk 0:41:21]} 23. Ng5 {[%clk 0:12:40]} 23... Bf5 {[%clk
0:41:05]} 24. Re1 {[%clk 0:12:09]} 24... Rbe8 {[%clk 0:31:50]} 25. Qxe8 {[%clk
0:12:21]} 25... Rxe8 {[%clk 0:32:19]} 26. Rxe8 {[%clk 0:12:46]} 26... Qd7 {[%clk
0:32:34]} 27. Bxf7 {[%clk 0:12:48]} 27... Qb5+ {[%clk 0:32:54]} 28. Kg1 {[%clk
0:13:05]} 28... Qxb2 {[%clk 0:33:16]} 29. Bd5 {[%clk 0:09:37]} 29... Qb5 {[%clk
0:30:24]} 30. Re7+ {[%clk 0:07:20]} 30... Kf8 {[%clk 0:30:35]} 31. Re5 {[%clk
0:05:09]} 31... Nc6 {[%clk 0:27:17]} 32. Bxc6 {[%clk 0:04:16]} 32... Qxc6 {[%clk
0:27:45]} 33. Kh2 {[%clk 0:04:39]} 33... a5 {[%clk 0:26:27]} 34. Rhe1 {[%clk
0:04:53]} 34... Qd7 {[%clk 0:26:16]} 35. d5 {[%clk 0:04:19]} 35... a4 {[%clk
0:26:31]} 36. d6 {[%clk 0:04:08]} 1-0

[Variant "Standard"]
[Site "Europe Echecs"]

[Event "Open Cappelle-la-Grande"]
[Date "2025.02.19"]
[White "Defromont, Benjamin"]
[Black "Raja Rithvik R"]
[WhiteElo "2395"]
[BlackElo "2522"]
[Round "6.6.6"]
[Result "0-1"]
[TimeControl "40/5400+30:1800+30"]

1. e4 {[%clk 1:19:35]} 1... c5 {[%clk 1:30:53]} 2. Nf3 {[%clk 1:19:58]} 2... d6
{[%clk 1:31:18]} 3. d4 {[%clk 1:20:20]} 3... cxd4 {[%clk 1:31:43]} 4. Nxd4
{[%clk 1:20:43]} 4... Nf6 {[%clk 1:32:08]} 5. Nc3 {[%clk 1:21:07]} 5... a6
{[%clk 1:32:33]} 6. Bg5 {[%clk 1:20:48]} 6... e6 {[%clk 1:32:31]} 7. Qe2 {[%clk
1:20:48]} 7... Nbd7 {[%clk 1:29:17]} 8. O-O-O {[%clk 1:13:18]} 8... Qc7 {[%clk
1:27:51]} 9. f4 {[%clk 1:09:48]} 9... b5 {[%clk 1:28:04]} 10. Nd5 {[%clk
1:04:32]} 10... exd5 {[%clk 1:19:04]} 11. exd5+ {[%clk 1:03:30]} 11... Be7
{[%clk 1:19:31]} 12. Nc6 {[%clk 0:57:30]} 12... Nb6 {[%clk 1:17:41]} 13. Bxf6
{[%clk 0:36:23]} 13... gxf6 {[%clk 1:18:06]} 14. Nxe7 {[%clk 0:35:22]} 14...
Qxe7 {[%clk 1:18:12]} 15. Qf2 {[%clk 0:35:44]} 15... Qd8 {[%clk 1:09:03]} 16.
Bd3 {[%clk 0:31:15]} 16... Kf8 {[%clk 1:06:05]} 17. g4 {[%clk 0:25:12]} 17...
Bb7 {[%clk 1:00:33]} 18. Qh4 {[%clk 0:20:54]} 18... h6 {[%clk 0:36:49]} 19. Rhg1
{[%clk 0:19:13]} 19... f5 {[%clk 0:35:45]} 20. Qf2 {[%clk 0:13:33]} 20... Nxd5
{[%clk 0:35:22]} 21. Bxf5 {[%clk 0:11:30]} 21... Qb6 {[%clk 0:32:29]} 22. Qxb6
{[%clk 0:10:29]} 22... Nxb6 {[%clk 0:32:54]} 23. Rxd6 {[%clk 0:10:53]} 23... Nc4
{[%clk 0:31:03]} 24. Rd4 {[%clk 0:10:56]} 24... Kg7 {[%clk 0:26:19]} 25. g5
{[%clk 0:08:01]} 25... Rad8 {[%clk 0:23:46]} 26. gxh6+ {[%clk 0:08:26]} 26...
Kxh6 {[%clk 0:24:12]} 27. Rxd8 {[%clk 0:08:49]} 27... Rxd8 {[%clk 0:24:38]} 28.
Bd3 {[%clk 0:09:03]} 28... Rd4 {[%clk 0:22:01]} 29. Rg4 {[%clk 0:08:48]} 29...
Ne3 {[%clk 0:19:14]} 30. Rh4+ {[%clk 0:08:35]} 30... Kg7 {[%clk 0:19:39]} 31.
Kd2 {[%clk 0:07:53]} 31... Nd5 {[%clk 0:18:37]} 32. Rh7+ {[%clk 0:07:14]} 32...
Kg8 {[%clk 0:17:29]} 33. Rh6 {[%clk 0:07:38]} 33... Rxf4 {[%clk 0:17:18]} 34.
Ke2 {[%clk 0:06:05]} 34... Kg7 {[%clk 0:16:26]} 35. Rh7+ {[%clk 0:05:43]} 35...
Kg8 {[%clk 0:15:53]} 36. Rh6 {[%clk 0:05:37]} 36... Kg7 {[%clk 0:15:06]} 37.
Rh7+ {[%clk 0:06:00]} 37... Kf6 {[%clk 0:15:33]} 38. a3 {[%clk 0:04:54]} 38...
Ke7 {[%clk 0:14:21]} 39. b3 {[%clk 0:03:16]} 39... Rf6 {[%clk 0:11:55]} 40. Kd2
{[%clk 0:03:34]} 40... Nf4 {[%clk 0:11:19]} 41. Bf1 {[%clk 0:03:55]} 41... Rd6+
{[%clk 0:10:00]} 42. Ke3 {[%clk 0:02:55]} 42... Rd1 {[%clk 0:10:13]} 43. Bxb5
{[%clk 0:02:12]} 43... Nd5+ {[%clk 0:10:37]} 44. Ke2 {[%clk 0:02:39]} 44... Nc3+
{[%clk 0:11:04]} 0-1

[Variant "Standard"]
[Site "Europe Echecs"]